bitfinex/quotes_SOLUSD_20250123
["timestamp","ask_amount","ask_price","bid_price","bid_amount"]
[1737655261479,6.1221,252.78,252.59,23.776884]
[1737655262175,6.1221,252.78,252.59,24.776884]
[1737655262473,0.03,252.81,252.64,23.776884]
[1737655262677,19.53609068,252.8,252.64,23.776884]
[1737655262874,19.53609068,252.8,252.6,1.8255]
[1737655263075,19.53609068,252.78,252.6,1.6255]
[1737655263255,27.30059068,252.74,252.64,312.0]
[1737655263454,19.53609068,252.72,252.55,20.0]
[1737655263661,19.53609068,252.72,252.59,20.0]
[1737655263869,19.53609068,252.7,252.59,20.0]
[1737655264068,19.53609068,252.72,252.59,20.0]
[1737655265073,19.53609068,252.72,252.57,23.776884]
[1737655265277,19.53609068,252.72,252.6,20.0]
[1737655265656,19.53609068,252.7,252.55,20.0]
[1737655265860,19.53609068,252.72,252.59,20.0]
[1737655266281,19.53609068,252.7,252.59,20.0]
[1737655268177,19.53609068,252.7,252.53,1.6255]
[1737655268178,27.30059068,252.74,252.6,43.776884]
[1737655268383,19.53609068,252.78,252.6,43.776884]
[1737655268578,19.53609068,252.8,252.6,43.776884]
[1737655269656,6.1521,252.81,252.6,44.776884]
[1737655269859,6.1521,252.81,252.7,20.0]
[1737655271457,6.1521,252.81,252.7,43.776884]
[1737655272390,6.1521,252.81,252.59,1.0]
[1737655272591,19.53609068,252.8,252.59,1.0]
[1737655272762,6.1521,252.81,252.67,20.0]
[1737655272964,6.1521,252.81,252.7,20.0]
[1737655275892,6.1521,252.81,252.7,43.776884]
[1737655277408,19.53609068,252.8,252.58,0.063]
[1737655277767,10.1076,252.81,252.58,1.62455386]
[1737655277768,19.53609068,252.78,252.58,1.62455386]
[1737655278271,19.53609068,252.76,252.58,1.62455386]
[1737655278476,19.53609068,252.74,252.58,1.62455386]
[1737655278671,19.53609068,252.74,252.58,313.62455386]
[1737655279282,19.53609068,252.67,252.58,0.063]
[1737655279472,19.53609068,252.65,252.58,0.063]
[1737655279866,19.53609068,252.67,252.58,0.063]
[1737655281567,19.53609068,252.65,252.58,0.063]
[1737655281972,19.53609068,252.67,252.58,0.063]
[1737655283684,12.22356043,252.66,252.58,0.063]
[1737655285013,12.22356043,252.68,252.58,0.063]
[1737655285175,20.26296043,252.7,252.58,0.063]
[1737655285376,20.26296043,252.7,252.58,20.063]
[1737655285791,8.0394,252.7,252.62,20.0]
[1737655286299,20.26296043,252.7,252.62,20.0]
[1737655286808,0.03,252.71,252.58,0.063]
[1737655288199,0.03,252.71,252.58,312.063]
[1737655288200,12.22356043,252.7,252.58,312.063]
[1737655288390,12.22356043,252.68,252.58,0.063]
[1737655288577,12.22356043,252.66,252.58,0.063]
[1737655289379,18.45996043,252.64,252.58,0.063]
[1737655290786,18.38886043,252.7,252.58,0.063]
[1737655290982,6.1653,252.7,252.58,0.063]
[1737655291388,0.03,252.71,252.66,20.0]
[1737655291679,0.03,252.71,252.67,23.776884]
[1737655291879,0.03,252.71,252.7,20.0]
[1737655292592,0.03,252.71,252.7,43.776884]
[1737655294299,0.03,252.81,252.78,20.0]
[1737655295303,0.03,252.81,252.79,23.776884]
[1737655297502,0.03,252.81,252.79,312.0]
[1737655298391,0.03,252.81,252.74,20.0]
[1737655299111,0.03,252.81,252.79,23.776884]
[1737655299578,0.03,252.81,252.8,23.776884]
[1737655301194,0.03,252.81,252.8,335.776884]
[1737655301785,0.03,252.81,252.8,23.776884]
[1737655302810,0.03,252.81,252.8,25.37365543]
[1737655303105,0.03,252.81,252.8,23.776884]
[1737655303286,0.03,252.81,252.78,1.61632593]
[1737655303483,0.03,252.81,252.79,23.776884]
[1737655303797,0.03,252.81,252.73,1.6442]
[1737655303991,0.03,252.81,252.7,1.0]
[1737655304193,0.03,252.81,252.7,1.60917263]
[1737655304422,30.0,252.8,252.63,1.7093]
[1737655304785,30.0,252.8,252.65,312.0]
[1737655304992,49.52623845,252.8,252.65,312.0]
[1737655305196,30.0,252.8,252.65,312.0]
[1737655305597,30.0,252.8,252.66,23.776884]
[1737655305914,30.0,252.8,252.69,20.0]
[1737655306290,30.0,252.8,252.69,23.776884]
[1737655307598,30.0,252.8,252.66,1.61254287]
[1737655307797,30.0,252.8,252.72,20.0]
[1737655308386,30.0,252.8,252.63,3.076997]
[1737655308692,30.0,252.8,252.64,23.776884]
[1737655308896,30.0,252.8,252.73,20.0]
[1737655309094,30.0,252.8,252.78,23.776884]
[1737655310523,0.03,252.81,252.8,43.776884]
[1737655314393,0.03,252.81,252.74,1.5936217]
[1737655314598,0.03,252.81,252.7,1.5887]
[1737655314794,0.03,252.81,252.68,6.2549]
[1737655314994,0.03,252.81,252.68,1.57674561]
[1737655315194,0.03,252.81,252.66,20.0]
[1737655315602,30.03,252.81,252.65,20.0]
[1737655315795,30.03,252.81,252.76,20.0]
[1737655317213,30.03,252.81,252.64,3.17027306]
[1737655317394,30.03,252.81,252.71,20.0]
[1737655317598,30.03,252.81,252.72,23.776884]
[1737655317999,30.03,252.81,252.76,23.776884]
[1737655318416,30.03,252.81,252.79,20.0]
[1737655318615,30.03,252.81,252.8,23.776884]
[1737655318794,30.03,252.81,252.8,20.0]
[1737655318999,30.03,252.81,252.8,43.776884]
[1737655319522,0.03,252.81,252.8,43.776884]
[1737655320111,0.03,252.81,252.8,355.776884]
[1737655320911,0.03,252.81,252.8,43.776884]
[1737655323810,0.03,252.81,252.8,355.776884]
[1737655325030,0.03,252.81,252.8,43.776884]
[1737655325206,0.03,252.84,252.83,43.776884]
[1737655329622,0.03,252.9,252.84,23.776884]
[1737655329917,0.03,252.9,252.88,23.776884]
[1737655330417,0.03,252.9,252.86,20.0]
[1737655331612,0.03,252.9,252.89,312.0]
[1737655332022,1.6279,253.0,252.92,20.0]
[1737655332609,1.6279,253.0,252.86,20.0]
[1737655333717,6.0145,253.01,252.86,20.0]
[1737655333920,6.0145,253.01,252.86,21.0]
[1737655334309,6.0145,253.01,252.86,20.0]
[1737655334509,6.0145,253.01,252.86,21.0]
[1737655334719,6.0145,253.01,252.94,20.0]
[1737655335015,6.0145,253.01,252.95,23.776884]
[1737655335909,6.0145,253.01,252.86,1.57053217]
[1737655336114,6.0145,253.01,252.85,20.0]
[1737655336708,6.0145,253.01,252.82,1.0]
[1737655336709,6.0145,253.01,252.83,21.8107]
[1737655336909,6.0145,253.01,252.85,1.0]
[1737655337578,6.0145,253.01,252.93,20.0]
[1737655337745,6.0145,253.01,252.83,1.6107]
[1737655337746,18.19978701,253.01,252.83,1.57720514]
[1737655338039,18.19978701,253.01,252.77,3.6365]
[1737655338040,18.19978701,253.01,252.77,2.8365]
[1737655338245,1.5908,252.96,252.77,2.8365]
[1737655338544,30.0,252.95,252.78,23.776884]
[1737655338739,30.0,252.95,252.86,20.0]
[1737655338939,30.0,252.95,252.84,23.776884]
[1737655339329,30.0,252.95,252.86,20.0]
[1737655339943,30.0,252.95,252.85,20.0]
[1737655340263,30.0,252.95,252.86,23.776884]
[1737655340665,30.0,252.95,252.89,23.776884]
[1737655341358,30.0,252.95,252.92,20.0]
[1737655341947,30.0,252.95,252.73,16.024137]
[1737655342152,6.0962,252.94,252.71,1.8638]
[1737655342361,12.18528701,252.9,252.71,3.27449855]
[1737655342568,1.5512,252.89,252.72,23.776884]
[1737655342770,30.0,252.88,252.79,20.0]
[1737655343242,30.0,252.88,252.71,1.67369855]
[1737655343968,30.0,252.88,252.71,0.063]
[1737655343969,18.68398701,252.87,252.71,0.063]
[1737655344156,19.52981902,252.83,252.71,0.063]
[1737655345048,31.6585,252.82,252.71,0.063]
[1737655345254,31.6585,252.82,252.71,20.063]
[1737655345461,31.6585,252.82,252.72,23.776884]
[1737655345671,19.52981902,252.81,252.71,20.063]
[1737655345849,19.52981902,252.79,252.71,0.063]
[1737655346165,19.52981902,252.77,252.71,0.063]
[1737655346375,19.52981902,252.75,252.71,0.063]
[1737655347170,30.0,252.74,252.71,0.063]
[1737655349059,19.52981902,252.73,252.71,0.063]
[1737655349256,31.5572,252.72,252.71,0.063]
[1737655349455,6.5485,252.71,252.58,0.063]
[1737655349656,19.52981902,252.69,252.58,0.063]
[1737655350039,26.07831902,252.71,252.6,20.0]
[1737655350247,30.0,252.68,252.6,20.0]
[1737655351745,30.0,252.68,252.64,20.0]
[1737655354338,49.52981902,252.68,252.58,0.063]
[1737655354740,49.52981902,252.68,252.59,20.0]
[1737655356458,49.52981902,252.68,252.58,0.063]
[1737655356665,49.52981902,252.68,252.59,20.0]
[1737655356989,49.52981902,252.68,252.58,0.063]
[1737655357132,19.52981902,252.66,252.58,0.063]
[1737655357332,30.0,252.64,252.58,0.063]
[1737655358067,20.52981902,252.62,252.58,0.063]
[1737655358251,19.52981902,252.59,252.45,0.063]
[1737655358444,6.546,252.53,252.45,0.063]
[1737655358762,6.546,252.53,252.46,1.63133571]
[1737655359838,6.546,252.53,252.47,23.776884]
[1737655360341,19.52981902,252.6,252.45,0.063]
[1737655360547,6.2186,252.59,252.51,20.0]
[1737655360772,6.2186,252.59,252.52,23.776884]
[1737655361171,6.2186,252.59,252.55,20.0]
[1737655362247,1.5186,252.63,252.56,23.776884]
[1737655363145,1.5186,252.63,252.59,20.0]
[1737655363754,6.3185,252.65,252.59,20.0]
[1737655365663,1.6507,252.69,252.59,20.0]
[1737655366454,19.52981902,252.68,252.59,20.0]
[1737655367447,1.6507,252.69,252.59,20.0]
[1737655367853,1.6507,252.69,252.59,20.063]
[1737655370466,12.22031971,252.68,252.59,20.063]
[1737655371671,12.22031971,252.66,252.59,0.063]
[1737655372285,12.22031971,252.64,252.59,0.063]
[1737655372585,12.22031971,252.66,252.59,0.063]
[1737655372992,12.22031971,252.68,252.59,0.063]
[1737655373171,1.6507,252.69,252.59,0.063]
[1737655373789,12.22031971,252.68,252.59,0.063]
[1737655375382,1.6507,252.69,252.59,0.063]
[1737655377081,1.6507,252.69,252.61,20.0]
[1737655377954,0.03,252.71,252.65,20.0]
[1737655378271,0.03,252.71,252.66,23.776884]
[1737655379958,0.03,252.71,252.59,0.063]
[1737655380159,0.03,252.71,252.61,23.776884]
[1737655380362,0.03,252.69,252.61,23.776884]
[1737655380766,0.03,252.69,252.59,23.839884]
[1737655380958,0.03,252.69,252.66,20.0]
[1737655385474,0.020426,252.71,252.66,20.0]
[1737655389972,0.020426,252.71,252.59,0.063]
[1737655390184,19.55943845,252.71,252.59,0.063]
[1737655390393,6.2558,252.68,252.59,0.063]
[1737655390598,19.53901245,252.65,252.59,0.063]
[1737655390896,30.0,252.64,252.59,0.063]
[1737655391892,6.2558,252.68,252.59,0.063]
[1737655392193,6.2558,252.68,252.6,20.0]
[1737655392399,1.534326,252.71,252.61,23.776884]
[1737655392578,1.534326,252.71,252.64,20.0]
[1737655392774,0.03,252.69,252.64,20.0]
[1737655395202,0.03,252.69,252.62,20.0]
[1737655396006,0.03,252.69,252.59,0.063]
[1737655396377,0.03,252.69,252.61,20.0]
[1737655400517,0.03,252.69,252.62,23.776884]
[1737655400800,0.03,252.69,252.59,0.063]
[1737655401712,0.03,252.69,252.62,20.0]
[1737655402595,0.03,252.69,252.66,20.0]
[1737655403111,0.03,252.69,252.62,20.0]
[1737655403407,0.03,252.69,252.63,23.776884]
[1737655404600,0.03,252.69,252.66,20.0]
[1737655405738,0.03,252.69,252.61,0.063]
[1737655405739,0.03,252.69,252.65,23.776884]
[1737655405921,0.03,252.69,252.68,20.0]
[1737655411816,0.03,252.69,252.61,0.063]
[1737655412240,12.24447011,252.69,252.61,0.063]
[1737655413316,30.0,252.67,252.61,0.063]
[1737655415738,12.21447011,252.64,252.61,0.063]
[1737655415936,12.21447011,252.62,252.61,0.063]
[1737655416139,16.17297011,252.62,252.61,0.063]
[1737655416515,17.17297011,252.62,252.61,0.063]
[1737655416717,1.0,252.6,252.59,0.063]
[1737655416920,47.77447011,252.6,252.59,0.063]
[1737655417543,46.77447011,252.6,252.59,0.063]
[1737655418927,49.72027332,252.6,252.59,0.063]
[1737655420945,50.72027332,252.6,252.59,0.063]
[1737655421243,49.72027332,252.6,252.59,0.063]
[1737655424341,73.49715732,252.6,252.59,0.063]
[1737655424521,74.49715732,252.6,252.59,0.063]
[1737655424720,73.49715732,252.6,252.59,0.063]
[1737655425943,49.72027332,252.6,252.59,0.063]
[1737655426446,53.67907332,252.6,252.59,0.063]
[1737655428445,54.67907332,252.6,252.59,0.063]
[1737655428644,53.67907332,252.6,252.59,0.063]
[1737655428846,79.45595732,252.6,252.59,0.063]
[1737655429148,115.47042743,252.6,252.59,0.063]
[1737655429560,12.21447011,252.5,252.45,0.063]
[1737655430063,42.21447011,252.5,252.45,0.063]
[1737655430570,68.62895411,252.5,252.45,0.063]
[1737655430859,126.38925411,252.5,252.45,0.063]
[1737655431151,77.576884,252.46,252.45,0.063]
[1737655431345,102.00582422,252.46,252.45,0.063]
[1737655432567,108.90426333,252.46,252.45,0.063]
[1737655432757,49.11290922,252.46,252.45,0.063]
[1737655432953,12.21447011,252.4,252.38,0.063]
[1737655433358,12.21447011,252.42,252.38,0.063]
[1737655434973,12.21447011,252.4,252.38,0.063]
[1737655436258,12.21447011,252.42,252.38,0.063]
[1737655438366,4.54,252.43,252.38,0.063]
[1737655438968,12.21447011,252.42,252.38,0.063]
[1737655439145,4.54,252.43,252.38,0.063]
[1737655439146,12.21447011,252.4,252.38,0.063]
[1737655440752,12.21447011,252.42,252.38,0.063]
[1737655440953,30.0,252.39,252.38,0.063]
[1737655441673,12.21447011,252.42,252.38,0.063]
[1737655444274,12.21447011,252.38,252.23,3.11989497]
[1737655444448,12.21447011,252.38,252.24,43.776884]
[1737655444655,32.21447011,252.4,252.24,20.0]
[1737655445158,30.0,252.37,252.24,20.0]
[1737655445765,12.21447011,252.36,252.24,20.0]
[1737655446150,12.21447011,252.31,252.23,0.063]
[1737655447573,12.21447011,252.33,252.23,20.063]
[1737655447972,30.0,252.35,252.23,20.063]
[1737655447973,42.21447011,252.35,252.23,20.063]
[1737655448273,30.0,252.35,252.24,23.776884]
[1737655449171,30.0,252.35,252.27,20.0]
[1737655449474,18.81647011,252.39,252.27,20.0]
[1737655449663,13.74377011,252.42,252.28,23.776884]
[1737655451652,12.21447011,252.4,252.28,23.776884]
[1737655452760,12.21447011,252.4,252.27,21.5129]
[1737655453277,12.21447011,252.4,252.28,20.0]
[1737655454056,12.21447011,252.38,252.28,20.0]
[1737655454677,13.74377011,252.42,252.28,20.0]
[1737655455049,12.21447011,252.42,252.28,43.776884]
[1737655455259,0.03,252.45,252.32,20.0]
[1737655455458,0.03,252.45,252.36,20.0]
[1737655455660,0.03,252.45,252.37,23.776884]
[1737655456068,0.03,252.45,252.41,25.432684]
[1737655456275,0.03,252.45,252.44,20.0]
[1737655456960,0.03,252.45,252.44,0.73763138]
[1737655457174,0.03,252.45,252.41,337.432684]
[1737655458179,0.03,252.45,252.41,25.432684]
[1737655458983,0.03,252.45,252.44,43.776884]
[1737655459475,2.93233111,252.52,252.49,23.776884]
[1737655459681,2.93233111,252.57,252.49,23.776884]
[1737655459977,2.93233111,252.57,252.52,20.0]
[1737655460382,2.93233111,252.57,252.53,23.776884]
[1737655460559,2.93233111,252.6,252.53,23.776884]
[1737655460962,2.93233111,252.6,252.57,23.776884]
[1737655461373,2.93233111,252.6,252.59,23.776884]
[1737655461558,0.03,252.61,252.59,23.776884]
[1737655462477,61.56183431,252.66,252.65,20.0]
[1737655462775,61.56183431,252.66,252.65,23.776884]
[1737655462975,61.56183431,252.66,252.56,6.5852]
[1737655463688,61.56183431,252.66,252.61,23.776884]
[1737655464867,61.56183431,252.66,252.65,23.776884]
[1737655465364,0.03,252.69,252.65,23.776884]
[1737655466083,0.03,252.69,252.63,20.0]
[1737655467062,0.03,252.69,252.63,43.776884]
[1737655467982,0.03,252.69,252.56,6.5852]
[1737655468190,0.03,252.69,252.57,23.776884]
[1737655468376,0.03,252.69,252.54,1.5862]
[1737655468377,12.21447011,252.68,252.54,1.5862]
[1737655468585,12.21447011,252.66,252.54,1.5862]
[1737655468901,12.21447011,252.66,252.49,6.6535]
[1737655469091,12.21447011,252.66,252.53,23.776884]
[1737655469269,12.21447011,252.66,252.49,320.26786246]
[1737655469469,12.21447011,252.66,252.52,20.0]
[1737655469699,12.21447011,252.66,252.53,23.776884]
[1737655470071,12.21447011,252.66,252.53,20.0]
[1737655470607,12.21447011,252.66,252.5,23.776884]
[1737655471095,12.21447011,252.62,252.49,312.0]
[1737655471294,12.21447011,252.6,252.41,8.2949]
[1737655471473,12.21447011,252.6,252.41,9.85149299]
[1737655471674,12.21447011,252.6,252.44,20.0]
[1737655471892,12.21447011,252.6,252.41,9.85149299]
[1737655472185,12.21447011,252.58,252.41,9.85149299]
[1737655472387,12.21447011,252.56,252.44,20.0]
[1737655472595,12.21447011,252.56,252.41,9.85149299]
[1737655472783,12.21447011,252.56,252.44,20.0]
[1737655472966,12.21447011,252.56,252.41,1.6905]
[1737655473478,12.21447011,252.56,252.45,20.0]
[1737655473682,12.21447011,252.58,252.42,23.776884]
[1737655474067,12.21447011,252.56,252.41,1.6905]
[1737655474404,12.21447011,252.54,252.41,313.6905]
[1737655474578,12.21447011,252.54,252.42,23.776884]
[1737655474774,12.21447011,252.54,252.45,20.0]
[1737655475103,12.21447011,252.52,252.45,20.0]
[1737655475285,6.4938,252.53,252.41,0.063]
[1737655475809,13.84887011,252.55,252.42,20.0]
[1737655475810,12.21447011,252.55,252.42,20.0]
[1737655476173,12.21447011,252.55,252.41,0.063]
[1737655476789,12.21447011,252.53,252.42,20.0]
[1737655476989,12.21447011,252.55,252.42,20.0]
[1737655477217,12.21447011,252.55,252.41,0.063]
[1737655477590,12.21447011,252.55,252.41,23.839884]
[1737655477908,12.21447011,252.52,252.41,0.063]
[1737655478121,12.21447011,252.5,252.41,0.063]
[1737655478413,67.576884,252.56,252.41,0.063]
[1737655478414,32.21447011,252.56,252.41,0.063]
[1737655480889,12.21447011,252.5,252.41,0.063]
[1737655481095,12.21447011,252.48,252.41,0.063]
[1737655481993,30.0,252.47,252.41,0.063]
[1737655483497,4.52,252.5,252.41,0.063]
[1737655484115,12.21447011,252.54,252.41,0.063]
[1737655484418,4.52,252.53,252.42,23.776884]
[1737655485312,4.52,252.53,252.41,0.063]
[1737655486127,4.52,252.53,252.42,20.0]
[1737655488595,4.52,252.53,252.43,23.776884]
[1737655489211,12.21447011,252.56,252.43,23.776884]
[1737655490413,4.52,252.58,252.43,23.776884]
[1737655490790,6.4938,252.59,252.46,20.0]
[1737655491416,6.4938,252.59,252.47,23.776884]
[1737655494805,6.4938,252.59,252.44,23.776884]
[1737655494992,1.6344,252.62,252.47,20.0]
[1737655495197,4.52,252.65,252.48,23.776884]
[1737655495494,4.52,252.65,252.55,20.0]
[1737655495694,0.03,252.66,252.56,23.776884]
[1737655495991,0.03,252.66,252.55,20.0]
[1737655496190,20.0,252.65,252.52,6.3056]
[1737655496505,16.17267011,252.64,252.51,1.6465]
[1737655497012,20.0,252.65,252.52,23.776884]
[1737655497219,16.20247011,252.66,252.51,1.6465]
[1737655497608,12.24447011,252.66,252.52,23.776884]
[1737655497808,0.03,252.66,252.55,20.0]
[1737655498731,0.03,252.66,252.56,23.776884]
[1737655499239,0.03,252.66,252.59,20.0]
[1737655499603,0.03,252.66,252.51,1.6465]
[1737655499604,0.03,252.66,252.56,23.776884]
[1737655499821,0.03,252.66,252.59,20.0]
[1737655502109,0.03,252.66,252.51,1.6465]
[1737655502110,0.03,252.66,252.63,20.0]
[1737655502308,0.03,252.66,252.64,23.776884]
[1737655502511,0.03,252.66,252.58,6.0986]
[1737655502716,0.03,252.66,252.5,1.0]
[1737655502717,0.03,252.66,252.51,8.1309]
[1737655502915,12.21447011,252.65,252.51,8.1309]
[1737655503130,12.21447011,252.65,252.51,1.6465]
[1737655503615,12.21447011,252.63,252.51,1.6465]
[1737655503830,12.21447011,252.63,252.52,20.0]
[1737655504029,12.21447011,252.63,252.51,1.6465]
[1737655504318,12.21447011,252.62,252.48,20.0]
[1737655504537,12.21447011,252.64,252.52,20.0]
[1737655505523,0.03,252.66,252.56,20.0]
[1737655506626,12.21447011,252.6,252.42,0.063]
[1737655506817,12.21447011,252.58,252.42,0.063]
[1737655507013,5.9879,252.66,252.42,0.063]
[1737655507014,12.21447011,252.56,252.42,0.063]
[1737655507423,12.21447011,252.54,252.42,20.063]
[1737655508118,12.21447011,252.54,252.43,23.776884]
[1737655508438,12.21447011,252.54,252.43,43.776884]
[1737655508620,12.21447011,252.56,252.43,43.776884]
[1737655509133,12.21447011,252.54,252.42,0.063]
[1737655509342,12.21447011,252.5,252.42,0.063]
[1737655509737,32.21447011,252.52,252.42,0.063]
[1737655509926,12.21447011,252.52,252.42,0.063]
[1737655511055,12.21447011,252.46,252.42,0.063]
[1737655512021,12.21447011,252.44,252.42,0.063]
[1737655512415,7.9805,252.43,252.42,0.063]
[1737655512621,31.757384,252.43,252.42,0.063]
[1737655512848,32.757384,252.43,252.42,0.063]
[1737655513064,62.757384,252.43,252.42,0.063]
[1737655513342,93.757384,252.43,252.42,0.063]
[1737655513538,61.757384,252.43,252.42,0.063]
[1737655513848,65.718784,252.43,252.42,0.063]
[1737655514246,37.9805,252.43,252.42,0.063]
[1737655514926,30.0,252.43,252.42,0.063]
[1737655515348,30.0,252.43,252.41,0.04302877]
[1737655516550,12.21447011,252.46,252.41,0.04302877]
[1737655517848,19.5903024,252.46,252.41,0.04302877]
[1737655519128,19.5903024,252.44,252.41,0.04302877]
[1737655520848,19.5903024,252.42,252.41,0.04302877]
[1737655521051,49.5903024,252.42,252.41,0.04302877]
[1737655522956,53.5519024,252.42,252.41,0.04302877]
[1737655523155,101.0987864,252.42,252.41,0.04302877]
[1737655523343,131.0987864,252.42,252.41,0.04302877]
[1737655523855,139.3235864,252.42,252.41,0.04302877]
[1737655525157,20.0,252.35,252.23,0.063]
[1737655525365,19.5903024,252.28,252.23,0.063]
[1737655525655,52.0905,252.42,252.23,0.063]
[1737655525656,19.5903024,252.24,252.23,0.063]
[1737655526339,49.5903024,252.24,252.23,0.063]
[1737655526744,30.0,252.24,252.23,0.063]
[1737655532158,49.5903024,252.24,252.23,0.063]
[1737655533435,30.0,252.24,252.23,0.063]
[1737655534055,19.5903024,252.26,252.23,0.063]
[1737655534254,30.0,252.24,252.23,0.063]
[1737655542559,42.2629243,252.24,252.23,0.063]
[1737655544366,46.2273243,252.24,252.23,0.063]
[1737655544571,93.7742083,252.24,252.23,0.063]
[1737655545492,20.0,252.17,252.16,0.063]
[1737655545657,56.0398083,252.17,252.16,0.063]
[1737655545856,32.2629243,252.17,252.16,0.063]
[1737655546276,36.2284243,252.17,252.16,0.063]
[1737655546663,66.2284243,252.17,252.16,0.063]
[1737655547259,90.0053083,252.17,252.16,0.063]
[1737655547575,91.0053083,252.17,252.16,0.063]
[1737655547951,54.776884,252.16,252.15,0.063]
[1737655548264,50.0,252.13,252.12,0.063]
[1737655548464,32.2629243,252.13,252.12,0.063]
[1737655548766,32.2629243,252.13,251.88,2.063]
[1737655548767,1.0,251.94,251.88,0.063]
[1737655548973,12.2629243,251.89,251.88,0.063]
[1737655549169,12.2629243,251.89,251.68,8.2107]
[1737655549365,12.2629243,251.86,251.68,8.2107]
[1737655549567,4.5,251.86,251.68,8.2107]
[1737655549764,4.5,251.86,251.71,20.0]
[1737655550288,30.0,251.81,251.71,20.0]
[1737655551061,30.0,251.81,251.68,10.2107]
[1737655551276,30.0,251.81,251.71,312.0]
[1737655551461,30.0,251.81,251.74,20.0]
[1737655551889,30.0,251.81,251.75,23.776884]
[1737655552260,30.0,251.81,251.75,20.0]
[1737655552577,30.0,251.81,251.68,9.2107]
[1737655552578,30.0,251.81,251.68,8.2107]
[1737655552783,30.0,251.81,251.75,23.776884]
[1737655553373,30.0,251.81,251.75,43.776884]
[1737655553571,4.5,251.91,251.79,20.0]
[1737655553972,19.6764195,251.89,251.78,20.0]
[1737655554659,24.1764195,251.91,251.79,20.0]
[1737655555383,19.6764195,251.89,251.71,20.0]
[1737655555584,19.6764195,251.89,251.75,20.0]
[1737655555963,4.5,251.91,251.76,23.776884]
[1737655555964,19.6764195,251.87,251.76,23.776884]
[1737655556281,19.6764195,251.85,251.71,20.0]
[1737655556478,8.4697,251.91,251.71,20.0]
[1737655556479,19.6764195,251.89,251.71,20.0]
[1737655556670,19.6764195,251.89,251.79,20.0]
[1737655556871,24.1764195,251.91,251.79,20.0]
[1737655557484,19.6764195,251.89,251.79,20.0]
[1737655557965,19.6764195,251.87,251.79,20.0]
[1737655558166,19.6764195,251.84,251.68,8.2107]
[1737655558476,30.0,251.8,251.79,0.03]
[1737655558680,49.6764195,251.8,251.79,0.03]
[1737655559272,30.0,251.8,251.79,0.03]
[1737655559878,30.0,251.8,251.79,43.806884]
[1737655560883,4.5,251.91,251.79,43.806884]
[1737655561062,19.6764195,251.9,251.79,0.03]
[1737655561260,19.6764195,251.88,251.79,0.03]
[1737655561570,30.0,251.8,251.79,0.03]
[1737655561967,49.6764195,251.8,251.79,0.03]
[1737655562374,30.0,251.8,251.79,0.03]
[1737655563087,19.6764195,251.86,251.79,0.03]
[1737655563989,19.6764195,251.84,251.79,0.03]
[1737655564489,19.6764195,251.82,251.79,0.03]
[1737655564866,19.6764195,251.8,251.79,0.03]
[1737655565068,49.6764195,251.8,251.79,0.03]
[1737655565687,127.2233035,251.8,251.79,0.03]
[1737655566384,43.77,251.77,251.55,1.561]